Cogmind - Beta 13 @@@ ROGUE MODE // 2024.03.08 @ 01:07:44 Player: gloin Result: Destroyed by H-61 Shepherd with Heavy Assault Cannon Performance ------------- Evolutions (2) 1000 Regions Visited (4) 800 Robots Destroyed (41) 205 Value Destroyed (1135) 1135 Prototype IDs (2) 40 Alien Tech Used (0) 0 Bonus (0) 0 TOTAL SCORE: 3180 Bonus ------- None Cogmind --------- Core Integrity 0/550 Matter 124/300 Energy 73/100 System Corruption 13% Temperature Cool (0) Movement Core (100) Ox1 Location -8/Materials Parts ------- > --- POWER (3) -------- (None) > --- PROPULSION (3) --- (None) > --- UTILITY (2) ------ Improved Heat Sink Improved Terrain Scan Processor > --- WEAPON (3) ------- Enhanced Autogun Mining Claw > --- INVENTORY (5) ---- Cryofiber Web Compact Matter Pod (150) Mining Claw Peak State ------------ > --- POWER ------------ Light Nuclear Core Light Nuclear Core > --- PROPULSION ------- Carbon-fiber Leg > --- UTILITY ---------- Improved Heat Sink Improved Terrain Scan Processor > --- WEAPON ----------- Enhanced Autogun Enhanced Autogun Axe > --- INVENTORY -------- Cryofiber Web Compact Matter Pod Enhanced Autogun Mining Claw Mining Claw [Rating: 27] Favorites ----------- Power Light Ion Engine Engine Light Ion Engine Power Core Light Nuclear Core Propulsion Aluminum Leg Treads Light Treads Leg Aluminum Leg Flight Unit Cesium-ion Thruster Utility Improved Terrain Scan Processor Device Cryofiber Web Storage Compact Matter Pod Processor Improved Terrain Scan Processor Hackware Hacking Suite Protection Light Armor Plating Weapon Enhanced Autogun Energy Gun Small Laser Energy Cannon Heavy Particle Cannon Ballistic Gun Enhanced Autogun Launcher Rocket Launcher Special Weapon Welding Torch Slashing Weapon Mining Claw Build | -11 -10 -9 -9 -8 ------- Run | Yrd Mat Mat Min Mat Slots Evolved 4 | . . 2 . 2 Power 2 | . . 2 . . Propulsion 1 | . . . . 1 Utility . | . . . . . Weapon 1 | . . . . 1 Parts Attached 47 | 5 7 2 4 29 Power 4 | . . . 1 3 Engine 2 | . . . 1 1 Core 2 | . . . . 2 Reactor . | . . . . . Propulsion 9 | 2 2 . . 5 Treads 2 | 2 . . . . Leg 6 | . 2 . . 4 Wheel . | . . . . . Hover . | . . . . . Flight 1 | . . . . 1 Utility 10 | 1 2 1 2 4 Device 2 | . . . . 2 Storage 3 | 1 . . 2 . Processor 1 | . . . . 1 Hackware 1 | . . . . 1 Protection 3 | . 2 1 . . Artifact . | . . . . . Weapon 24 | 2 3 1 1 17 Energy Gun 8 | 2 2 . . 4 Energy Cannon 1 | . . . . 1 Ballistic Gun 8 | . . . 1 7 Ballistic Cannon . | . . . . . Launcher 1 | . . 1 . . Special Weapon 1 | . 1 . . . Impact Weapon . | . . . . . Slashing Weapon 5 | . . . . 5 Piercing Weapon . | . . . . . Special Melee Weapon . | . . . . . Unidentified Prototypes 2 | . . . . 2 Parts Lost 23 | . 5 1 . 17 Power 4 | . . . . 4 Propulsion 8 | . 2 1 . 5 Utility 2 | . . . . 2 Weapon 9 | . 3 . . 6 Highest Loss Streak 6 | . 5 1 . 6 To Critical Strikes . | . . . . . Average Slot Usage (%) 60 | . 61 59 64 60 Engine 2 | . . . 9 3 Core 1 | . . . . 1 Treads 2 | . 14 . . . Leg 11 | . 5 15 11 11 Device 2 | . . . . 4 Storage 4 | . 12 . 1 2 Processor 4 | . . . . 7 Hackware 1 | . . . . 2 Protection 4 | . 3 22 20 . Energy Gun 8 | . 21 11 1 4 Energy Cannon 1 | . . . . 2 Ballistic Gun 8 | . . . 9 12 Launcher 4 | . . 10 11 4 Slashing Weapon 1 | . . . . 2 Naked Turns . | . . . . . Heaviest Build 20 | 7 8 15 19 20 Greatest Support 40 | 40 40 20 10 33 Greatest Overweight (x) 4 | . 1 1 1 4 Average Overweight (x) . | . . . 1 . Largest Inventory Capacity 8 | 8 8 5 5 5 Average Capacity 5 | 6 7 5 5 5 Most Carried 5 | 2 3 5 5 5 Average Carried 3 | . . 4 4 4 Final Capacity 8 | 8 5 5 5 5 Final Carried 5 | . 2 5 4 3 Class Distribution -------------------- 51% | Mutant 34% | Gunner 8% | Scavenger-Mutant 4% | Bomber Dominant Class ---------------- Mutant | -10/Materials Mutant | -9/Materials Mutant | -9/Mines Gunner | -8/Materials Resources | -11 -10 -9 -9 -8 ----------- Run | Yrd Mat Mat Min Mat Matter Collected 1372 | 159 111 . 300 802 Remotely . | . . . . . Salvage Created 1329 | . 322 . 16 991 Parts 80 | . 21 1 6 52 Haulers Intercepted 3 | . . . . 3 Recyclers Shooed 3 | . 1 . . 2 Parts Field Recycled . | . . . . . Retrieved Matter . | . . . . . Parts Self-Destructed . | . . . . . Prevented . | . . . . . Kills | -11 -10 -9 -9 -8 ------- Run | Yrd Mat Mat Min Mat Combat Hostiles Destroyed 26 | . 6 . 4 16 Guns 18 | . 6 . . 12 AOE 8 | . . . 4 4 Classes Destroyed 8 | . 3 1 1 3 Worker 5 | . 1 . . 4 Builder 3 | . 1 . . 2 Hauler 3 | . . . . 3 Operator 1 | . . . . 1 Watcher 3 | . . 1 . 2 Swarmer 4 | . . . 4 . Grunt 18 | . 6 . . 12 Sentry 4 | . . . . 4 Best Kill Streak 6 | . 3 1 4 6 Combat Bots Only 4 | . 3 . 4 4 Max Kills in Single Turn 3 | . 1 1 3 2 Gunslinging . | . . . . . Exploded 3 | . . . 3 1 Melee . | . . . . . Uniques/NPCs Destroyed . | . . . . . Combat | -11 -10 -9 -9 -8 -------- Run | Yrd Mat Mat Min Mat Hostile Shots Fired 207 | . 77 . 2 128 Missed 47 | . 14 . 1 32 Damage Taken 3209 | . 929 72 88 2120 Core 818 | . 228 . 9 581 Absorbed by Shields . | . . . . . Core Remaining (%) 68 | 100 8 . 97 . Volleys Fired 117 | . 38 5 2 72 Largest 3 | . 2 2 2 3 Hottest 145 | . 80 73 73 145 Shots Fired 243 | . 65 9 4 165 Gun 207 | . 65 5 2 135 Cannon 14 | . . . . 14 Launcher 22 | . . 4 2 16 Special . | . . . . . Kinetic 121 | . . . . 121 Thermal 86 | . 65 5 2 14 Explosive 22 | . . 4 2 16 Electromagnetic 14 | . . . . 14 Robot Hit Streak 9 | . 5 1 1 9 Robot Miss Streak 6 | . 3 3 3 6 Penetration Max . | . . . . . Secondary Targets . | . . . . . Shots Hit Robots 135 | . 39 2 1 93 Core Hits 74 | . 18 1 4 51 Critical Kills 1 | . . . . 1 Critical Parts Destroyed 1 | . . . . 1 Critical Strikes 2 | . . . . 2 Destroy 2 | . . . . 2 Melee Attacks 3 | . . . . 3 Impact . | . . . . . Slashing 3 | . . . . 3 Piercing . | . . . . . Sneak Attacks . | . . . . . Combat Hostiles . | . . . . . Follow-up Attacks 1 | . . . . 1 Damage Inflicted 3431 | . 508 86 250 2587 Guns 1992 | . 508 12 . 1472 Cannons 200 | . . . . 200 Explosions 1192 | . . 66 250 876 Melee 35 | . . . . 35 Ramming 12 | . . 8 . 4 Kinetic 1310 | . . . . 1310 Thermal 764 | . 508 12 44 200 Explosive 1148 | . . 66 206 876 Electromagnetic 162 | . . . . 162 Impact . | . . . . . Slashing 35 | . . . . 35 Piercing . | . . . . . Highest Corruption 13 | . 1 . . 13 Average Corruption 12 | . 1 . . 12 Corruption Purged . | . . . . . Corruption Blocked . | . . . . . Effects 14 | . . . . 14 Message Errors 4 | . . . . 4 Matter Fused 2 | . . . . 2 Heat Flow Errors 1 | . . . . 1 Energy Discharges 3 | . . . . 3 Data Loss (minor) 1 | . . . . 1 Data Loss (major) 1 | . . . . 1 Misfires 1 | . . . . 1 Misdirections 1 | . . . . 1 Overload Shots . | . . . . . Overflow Damage 68 | . . 18 10 40 Projectiles . | . . . . . Explosions 68 | . . 18 10 40 Melee . | . . . . . Knockbacks . | . . . . . Impact . | . . . . . Kinetic . | . . . . . Secondary . | . . . . . Self-Inflicted Damage 274 | . . 72 80 122 Shots 8 | . . 2 3 3 Rammed . | . . . . . Targets Rammed 3 | . . 2 . 1 Kicked 3 | . . 2 . 1 Crushed . | . . . . . Highest Temperature 567 | . 277 12 24 567 Average Temperature 122 | . 114 5 16 152 Received Heat Transfer 1077 | . 492 . . 585 Effects 5 | . 1 . . 4 Interference 1 | . 1 . . . Damage (major) 4 | . . . . 4 Siege Activations . | . . . . . Robots Corrupted . | . . . . . Combat Hostiles . | . . . . . Parts Fried . | . . . . . Impact Corruptions . | . . . . . Robots Melted . | . . . . . Combat Hostiles . | . . . . . Parts Melted 2 | . 2 . . . Heat Transferred 1571 | . 1150 25 100 296 Parts Sabotaged . | . . . . . Parts Stolen . | . . . . . Parts Stripped . | . . . . . Power Chain Reactions . | . . . . . Alert | -11 -10 -9 -9 -8 ------- Run | Yrd Mat Mat Min Mat Peak Influence 334 | . 125 97 174 334 Initial 67 | . . 46 37 67 Average 144 | . 65 71 173 190 Maximum Alert Level 1 | . . . . 1 Low Security (%) 72 | 100 100 100 100 53 Level 1 27 | . . . . 46 Level 2 . | . . . . . Level 3 . | . . . . . Level 4 . | . . . . . Level 5 . | . . . . . High Security . | . . . . . Max Security . | . . . . . Squads Dispatched 4 | . 1 1 . 2 Investigation 2 | . 1 1 . . Extermination . | . . . . . Reinforcement 2 | . . . . 2 Assault . | . . . . . Garrison . | . . . . . Intercept . | . . . . . Searches Triggered . | . . . . . Construction Impeded 1 | . . . . 1 Haulers Reinforced . | . . . . . Active Scanning Responses . | . . . . . Cargo Convoy Interrupts . | . . . . . Stealth | -11 -10 -9 -9 -8 --------- Run | Yrd Mat Mat Min Mat Distress Signals 1 | . . . . 1 Communications Jammed . | . . . . . Distress Signals . | . . . . . Times Spotted 36 | . 9 2 1 24 Peak Tracking Total 5 | . 4 1 1 5 Tactical Retreats 2 | . . . . 2 Traps | -11 -10 -9 -9 -8 ------- Run | Yrd Mat Mat Min Mat Traps Triggered 2 | . 2 . . . Indirectly . | . . . . . Trap Hack Attempts . | . . . . . Triggered . | . . . . . Disarmed . | . . . . . Reprogrammed . | . . . . . Reused . | . . . . . Traps Extracted . | . . . . . Installed . | . . . . . Triggered . | . . . . . Machines | -11 -10 -9 -9 -8 ---------- Run | Yrd Mat Mat Min Mat Machines Disabled 1 | . . . 1 . Max in Single Turn 1 | . . . 1 . Machines Repaired . | . . . . . Machines Dismantled . | . . . . . Machines Sabotaged . | . . . . . Overloaded Fab Kills . | . . . . . Hacking | -11 -10 -9 -9 -8 --------- Run | Yrd Mat Mat Min Mat Machines Accessed 3 | . . 2 . 1 Terminals 2 | . . 1 . 1 Fabricators . | . . . . . Repair Stations . | . . . . . Recycling Units 1 | . . 1 . . Scanalyzers . | . . . . . Garrison Access . | . . . . . Total Hacks 8 | . . 7 . 1 Successful 7 | . . 6 . 1 Failed 1 | . . 1 . . Catastrophic . | . . . . . Database Lockouts . | . . . . . Manual . | . . . . . Terminals 2 | . . 1 . 1 Fabricators . | . . . . . Repair Stations . | . . . . . Recycling Units 6 | . . 6 . . Scanalyzers . | . . . . . Garrison Access . | . . . . . Terminal Hacks 2 | . . 1 . 1 Record 1 | . . 1 . . Patrol Status 1 | . . . . 1 Fabricator Hacks . | . . . . . Repair Station Hacks . | . . . . . Recycling Unit Hacks 5 | . . 5 . . Recycle Component 2 | . . 2 . . Process 1 | . . 1 . . Retrieve Matter 1 | . . 1 . . Retrieve Components 1 | . . 1 . . Scanalyzer . | . . . . . Garrison Access Hacks . | . . . . . Unauthorized Hacks . | . . . . . Terminals . | . . . . . Fabricators . | . . . . . Repair Stations . | . . . . . Recycling Units . | . . . . . Scanalyzers . | . . . . . Garrison Access . | . . . . . Data Cores Recovered 1 | . . . . 1 Used . | . . . . . Hacking Detections 2 | . . 2 . . Full Trace Events 1 | . . 1 . . Feedback Events . | . . . . . Feedback Blocked . | . . . . . Robot Schematics Acquired . | . . . . . Robots Built . | . . . . . Authchips . | . . . . . Time . | . . . . . Total Robot Build Rating . | . . . . . Part Schematics Acquired . | . . . . . Parts Built . | . . . . . Authchips . | . . . . . Time . | . . . . . Total Part Build Rating . | . . . . . Parts Repaired . | . . . . . Time . | . . . . . Parts Recycled 2 | . . 2 . . Recycled Matter 61 | . . 61 . . Retrieved Matter 61 | . . 61 . . Retrieved Components . | . . . . . Parts Scanalyzed . | . . . . . Part Schematics Acquired . | . . . . . Parts Damaged . | . . . . . Bothacking | -11 -10 -9 -9 -8 ------------ Run | Yrd Mat Mat Min Mat Used RIF Installer . | . . . . . Robots Hacked . | . . . . . Non-combat . | . . . . . Combat . | . . . . . Robot Hacks Applied . | . . . . . Relay Couplers Released . | . . . . . Fabnet Peak Effective % . | . . . . . Robots Rewired . | . . . . . Allies Hacked . | . . . . . Hacks Repelled . | . . . . . Allies | -11 -10 -9 -9 -8 -------- Run | Yrd Mat Mat Min Mat Total Allies . | . . . . . Largest Group . | . . . . . Highest-Rated Group . | . . . . . Highest-Rated Ally . | . . . . . Total Orders . | . . . . . Ally Attacks . | . . . . . Total Damage . | . . . . . Kills . | . . . . . Allies Corrupted . | . . . . . Allies Melted . | . . . . . Intel | -11 -10 -9 -9 -8 ------- Run | Yrd Mat Mat Min Mat Robot Analysis Total . | . . . . . Derelict Logs Recovered 1 | . . . 1 . Drone Launches . | . . . . . Drone Recoveries . | . . . . . Exploration | -11 -10 -9 -9 -8 ------------- Run | Yrd Mat Mat Min Mat Turns Passed 1545 | 59 277 200 99 910 Spaces Moved 709 | 39 117 110 45 398 Core 92 | 13 25 . . 54 Treads 75 | 26 49 . . . Legs 541 | . 43 110 45 343 Wheels . | . . . . . Hover . | . . . . . Flight 1 | . . . . 1 Fastest Speed 50 | 50 100 120 190 50 Average Speed 151 | 123 132 156 190 154 Slowest Speed 250 | 160 160 190 190 250 Overloaded Moves . | . . . . . Propulsion Burnouts . | . . . . . Robots Hopped . | . . . . . Cave-ins Triggered . | . . . . . Exploration Rate (%) 19 | 4 25 16 21 30 Regions Visited 4 Branch Regions 1 Pre-discovered Areas . | . . . . . Known Exits Taken . | . . . . . Unknown Exits Taken 4 | 1 1 1 1 . Scrap Searched . | . . . . . Spaces Dug . | . . . . . Terrain Destroyed 188 | . . 55 22 111 Melee . | . . . . . Projectile 7 | . . . . 7 AOE 181 | . . 55 22 104 Terrain Rammed . | . . . . . Walls Destroyed . | . . . . . Machines Disabled . | . . . . . Actions | -11 -10 -9 -9 -8 --------- Run | Yrd Mat Mat Min Mat Total 982 | 50 174 128 55 575 Wait 58 | 2 4 . . 52 Move 705 | 38 116 109 44 398 Hop . | . . . . . Pick Up 32 | 5 8 7 2 10 Fast Attach 14 | . . . 1 13 Attach 19 | 5 7 . 1 6 Detach 1 | . 1 . . . Swap 14 | . . 2 2 10 Drop 17 | . . 3 3 11 Fire 117 | . 38 5 2 72 Melee 2 | . . . . 2 Ram . | . . . . . Kick 3 | . . 2 . 1 Crush . | . . . . . Escape Stasis . | . . . . . Rewire . | . . . . . Trap . | . . . . . Miscellaneous . | . . . . . Route ------- -11/Scrapyard -10/Materials -9/Materials -9/Mines -8/Materials (discovered 1 exit: [*Fac]) History --------- Turn | Location | Event 4 | -11/Scrapyard | Discovered new exit (range 15) 60 | -11/Scrapyard | Entered Materials 217 | -10/Materials | Core integrity fell below 50% 243 | -10/Materials | Core integrity fell below 20% 267 | -10/Materials | Lost 5 parts (2n3w) 328 | -10/Materials | Discovered new exit (range 7) 337 | -10/Materials | Entered another Materials area 337 | -9/Materials | Evolved 2 slots: Power x2 505 | -9/Materials | Discovered new exit (range 8) 537 | -9/Materials | Entered Mines 600 | -9/Mines | Learned Materials terminal intel 613 | -9/Mines | Discovered new exit (range 3) 635 | -9/Mines | Met a Derelict bent on vengeance 636 | -9/Mines | Entered Materials 636 | -8/Materials | Evolved 2 slots: Propulsion x1, Weapon x1 637 | -8/Materials | Loaded intel: 11 terminal locations 653 | -8/Materials | Build established: Mutant 967 | -8/Materials | Build established: Gunner 1267 | -8/Materials | System corruption reached 10% 1298 | -8/Materials | Lost 6 parts (3n1u2w) 1330 | -8/Materials | Core integrity fell below 50% 1507 | -8/Materials | Discovered new exit (range 15) 1522 | -8/Materials | Core integrity fell below 20% 1546 | -8/Materials | Destroyed by H-61 Shepherd with Heavy Assault Cannon Last Messages --------------- Acquired Hvy. EM Shotgun. Aluminum Leg destroyed. Knocked back. Acquired Hvy. EM Shotgun. Knocked back. R-06 Scavenger collects Enh. Autogun. KD>HTF/TDV9H1YYFE3GDNWJJ Hvy. EM Shotgun destroyed. Critical hit (Blast). R-06 Scavenger collects Enh. Autogun. Acquired Hvy. EM Shotgun. Penetrated by Slug. R-06 Scavenger collects Axe. Hvy. EM Shotgun destroyed. R-06 Scavenger collects Weight Redist. System. Acquired 53 matter. Hvy. EM Shotgun destroyed. System corrupted: Substantial component data lost. H-61 Shepherd calls for reinforcements. ALERT: Hostile activity reported, dispatching reinforcements to area. Map ----- +----------------------------------------------------+ | ????????????????????????# #????????? | | ???????????????????????## ##???????? | | ???????????????????????# #???????? | | ???????????????????????# #???????? | | ???????????????????????# #???????? | | ???????????????????????# #???????? | | ???????????????????????# #??#????? | | ???????????????????????##= ##?# ###?? | | ????????????????????????# # # | | ????????????????????????# + """ "??? | | ????????????????????????# # """ Y??? | | ????????????????????????# # """ "" ? | | ????????????????????????# + # | | ????????????????????????+ %#######??? | | ????????????????????????#% #????????? | | ????????????????????????# %#????????? | | ????????????????????????# %%#????"???? | | ????????????????????????#! %#???""" ?# | | ????????????????????????# [=+?? """ ? | | ?????????################ =!#? ?? | | ???????? # " "?? | | ???????? =%# "T"?? | | ???????? % ; """?? | | ???????? % # ! # | | ??????????####+##### ########?? | | ?????????????????#####+#;@ #????????? | | ?????????????????# T #H #????????? | | ?????????????????# # #????????? | | ?????????????????# """ # #????????? | | ?????????????????# """ # +????????? | | ?????????????????#! """ # < #""??????? | | ?????????????????# # #"T??????? | | ?????????????????############""??????? | | ?????????????????????????????????????? | | ?????????????????????????????????????? | | ?????????????????????????????????????? | | ?????????????????????????????????????? | | | | | | | | | | | | | | | | | | | | | | | | | | | +----------------------------------------------------+ Best States ------------- Heat Dissipation 45 Energy Generation 23 Energy Capacity 265 Matter Stores 333 Matter Capacity 600 Sight Range 16 Terrain Scan Density 110 Base Temperature (-) 100 Armor Coverage 375 Evasion (%) 55 Recoil Reduction 2 Offensive Hacking 10 Item Schematics ----------------- None Robot Schematics ------------------ None Fabricated ------------ Nothing Alien Tech Used ----------------- None Achievements -------------- Close Call Storm Trooper Challenges ------------ None Game ------ Seed SpacefoldPhaseLink Manual? 0 Play Time 00:23:03 Cumulative 1.4 hours Start 2024.03.08 @ 00:45:45 End 2024.03.08 @ 01:07:44 Sessions 1 Manual Loads 0 Difficulty Rogue Special Mode None Game No. 3 Rogue 3 Adventurer 0 Explorer 0 Win Type - Total 0 Types 0/0/0/0/0/0/0/0/0 Lore% 0 Gallery% 4 Achievement% 4 Wizard Run 0 Options --------- Layout 1 ASCII 0 Keyboard 0 Movement Mouse Keybinds 0 Fullscreen 1 Font 32/SmallcapsGlow Map View 90x40 Zoom Use 26% Tactical HUD 0 Map Filters NONE Filters NONE Steam 1 RUN: ae303fc0-6ec4-43fe-a9e2-64e1b1c9fb0d